bitfinex/quotes_ETHUSD_20250906
["timestamp","ask_amount","ask_price","bid_price","bid_amount"]
[1757165810499,15.20796236,4292.8,4292.7,1.717]
[1757165810866,15.20796236,4292.8,4292.7,5.631]
[1757165812311,15.20788123,4292.8,4292.7,5.631]
[1757165813611,6.12153618,4292.7,4292.6,0.004]
[1757165813819,6.25155875,4292.7,4292.6,3.918]
[1757165814112,8.32199366,4292.7,4292.3,0.004]
[1757165814275,11.53543255,4292.4,4292.3,1e-08]
[1757165814475,6.25172157,4292.4,4292.3,1e-08]
[1757165814676,6.25172157,4292.4,4292.3,0.31060001]
[1757165814910,7.80880967,4292.4,4292.3,1.23550001]
[1757165815298,7.80880967,4292.4,4292.3,5.14850001]
[1757165816419,7.80880967,4292.4,4292.3,4.68970001]
[1757165816619,7.80880967,4292.4,4292.3,5.14850001]
[1757165817892,7.80880967,4292.4,4292.3,4.68240001]
[1757165818097,7.80880967,4292.4,4292.3,3.91300001]
[1757165818483,8.10270967,4292.4,4292.3,3.91300001]
[1757165818682,7.80880967,4292.4,4292.3,3.91300001]
[1757165819085,7.80880967,4292.4,4292.3,4.22360001]
[1757165820108,7.80880967,4292.4,4292.3,4.68240001]
[1757165820313,7.80880967,4292.4,4292.3,5.14850001]
[1757165821697,6.25172157,4292.4,4292.3,5.14850001]
[1757165822513,6.25172157,4292.4,4292.3,4.22360001]
[1757165822720,6.25172157,4292.4,4292.3,5.14850001]
[1757165823830,6.54562157,4292.4,4292.3,3.91300001]
[1757165824030,6.54562157,4292.4,4292.3,3.90900001]
[1757165824233,8.03520194,4292.4,4292.3,3.90900001]
[1757165825727,14.55120194,4292.4,4292.3,3.90900001]
[1757165828798,14.25730194,4292.4,4292.3,4.67840001]
[1757165829002,14.25715316,4292.4,4292.3,4.67840001]
[1757165830297,6.64587379,4292.4,4292.3,5.13300001]
[1757165830723,7.308,4292.4,4292.3,5.13300001]
[1757165830922,6.516,4292.4,4292.3,5.13300001]
[1757165831340,7.308,4292.4,4292.3,5.13300001]
[1757165831529,6.516,4292.4,4292.3,5.13300001]
[1757165832444,6.516,4292.4,4292.3,10.48900001]
[1757165832815,0.792,4292.8,4292.3,10.48900001]
[1757165833030,0.792,4292.8,4292.4,0.8865]
[1757165833338,3.12148319,4292.8,4292.7,0.2988]
[1757165833638,0.92207366,4292.8,4292.7,5.0923]
[1757165834640,3.25155558,4292.8,4292.7,5.0923]
[1757165834938,3.25155558,4292.8,4292.7,4.2058]
[1757165835111,3.80965068,4292.8,4292.7,4.2058]
[1757165836436,3.80965068,4292.8,4292.4,0.4319]
[1757165836437,0.792,4292.5,4292.4,0.4319]
[1757165836742,0.792,4292.5,4292.4,4.3596]
[1757165836923,0.792,4292.5,4292.4,4.6584]
[1757165837439,0.792,4292.5,4292.4,5.0903]
[1757165839542,0.742,4292.6,4292.4,5.0903]
[1757165839703,0.742,4292.6,4292.4,4.6584]
[1757165839903,0.742,4292.6,4292.5,0.4319]
[1757165840439,0.742,4292.6,4292.5,0.7307]
[1757165840637,0.742,4292.6,4292.5,5.0883]
[1757165840844,0.742,4292.6,4292.5,4.6337]
[1757165841421,0.742,4292.6,4292.5,5.0883]
[1757165841633,3.12148892,4292.8,4292.5,5.0883]
[1757165841939,0.001,4293.0,4292.6,0.8865]
[1757165841940,0.792,4292.7,4292.6,0.8865]
[1757165842238,0.792,4292.8,4292.6,1.1853]
[1757165842475,3.12148192,4292.8,4292.7,3.903]
[1757165842626,3.25152911,4292.8,4292.7,3.903]
[1757165846129,3.54952911,4292.8,4292.7,3.903]
[1757165846833,0.792,4292.5,4292.3,5.35600001]
[1757165847039,0.792,4292.5,4292.4,3.901]
[1757165847465,0.792,4292.5,4292.4,4.6317]
[1757165847965,0.792,4292.6,4292.4,5.0863]
[1757165848138,0.792,4292.6,4292.5,0.8865]
[1757165848649,0.792,4292.6,4292.5,1.1853]
[1757165849425,0.792,4292.6,4292.5,5.0853]
[1757165850037,3.121699,4292.4,4292.3,1e-08]
[1757165850238,6.28087361,4292.4,4292.3,3.90000001]
[1757165850469,7.49045238,4292.4,4292.3,3.90000001]
[1757165850655,7.49045238,4292.4,4292.3,1e-08]
[1757165850859,7.49045238,4292.4,4292.3,3.90000001]
[1757165851165,6.12175327,4292.3,4292.2,1e-08]
[1757165851335,6.23780755,4292.2,4292.1,1.713]
[1757165851541,13.02029448,4292.2,4292.1,1.713]
[1757165852428,13.02029448,4292.2,4292.1,5.616]
[1757165852838,13.02029448,4292.2,4292.0,0.004]
[1757165852839,6.12186183,4292.1,4292.0,0.004]
[1757165853063,8.02251367,4292.1,4292.0,0.004]
[1757165853367,9.26121367,4292.1,4292.0,0.004]
[1757165853933,9.26121367,4292.1,4292.0,3.906]
[1757165855268,15.77721367,4292.1,4292.0,3.906]
[1757165858137,12.19175184,4292.1,4291.8,1.743]
[1757165858373,3.792,4291.9,4291.8,1.743]
[1757165858669,6.55002378,4291.9,4291.8,1.743]
[1757165858843,7.01362378,4291.9,4291.8,1.743]
[1757165859036,6.55002378,4291.9,4291.8,1.743]
[1757165859372,9.35112359,4291.9,4291.8,1.743]
[1757165859587,9.35112359,4291.9,4291.8,5.645]
[1757165859983,8.41042359,4291.9,4291.8,5.645]
[1757165861349,8.41042359,4291.9,4291.5,0.004]
[1757165861350,12.59645319,4291.9,4291.5,0.004]
[1757165861550,11.53597542,4291.4,4291.3,1.718]
[1757165861737,11.9578288,4291.4,4291.3,1.718]
[1757165862137,11.9578288,4291.4,4291.1,0.004]
[1757165862138,3.12235048,4291.2,4291.1,0.004]
[1757165862480,6.28153324,4291.2,4291.1,1.718]
[1757165862684,6.25240386,4291.2,4291.1,1.718]
[1757165862974,7.38955162,4291.2,4291.1,1.718]
[1757165863154,7.68135162,4291.2,4291.1,1.718]
[1757165863351,13.09508517,4291.2,4291.1,5.619]
[1757165863754,12.80328517,4291.2,4291.1,5.619]
[1757165864375,2.46040386,4291.2,4291.1,6.3738]
[1757165864706,3.12235048,4291.2,4291.1,6.8259]
[1757165866542,3.12235048,4291.2,4291.1,2.9249]
[1757165866868,3.12235048,4291.2,4291.1,6.8249]
[1757165872490,6.12235048,4291.2,4291.1,6.8249]
[1757165873068,12.63835048,4291.2,4291.1,6.8249]
[1757165875294,12.76810568,4291.2,4291.1,6.8249]
[1757165876414,12.76810568,4291.2,4291.1,6.3597]
[1757165876578,12.76810568,4291.2,4291.1,5.9076]
[1757165877256,12.76810568,4291.2,4291.1,6.3597]
[1757165878577,12.76810568,4291.2,4291.1,6.8249]
[1757165878578,10.4377552,4291.2,4291.1,6.8249]
[1757165878763,12.76810568,4291.2,4291.1,6.8249]
[1757165880110,10.4377552,4291.2,4291.1,6.8249]
[1757165880672,7.4377552,4291.2,4291.1,6.8249]
[1757165885116,11.47343072,4291.2,4291.1,1.718]
[1757165885329,11.47343072,4291.2,4291.1,5.613]
[1757165885330,14.7236812,4291.2,4291.1,5.613]
[1757165887016,14.7236812,4291.2,4291.1,1.718]
[1757165887179,14.7236812,4291.2,4291.1,5.613]
[1757165889207,14.7236812,4291.2,4291.1,5.9026]
[1757165889208,6.6457552,4291.2,4291.1,5.9026]
[1757165889409,0.001,4291.3,4291.1,6.8199]
[1757165889608,0.001,4291.3,4291.2,0.9173]
[1757165890132,0.001,4291.3,4291.2,1.2107]
[1757165890133,0.793,4291.3,4291.2,1.2107]
[1757165890336,0.92313871,4291.3,4291.2,1.2107]
[1757165893569,0.92313871,4291.3,4291.1,5.613]
[1757165893570,3.12235048,4291.2,4291.1,1.718]
[1757165893710,4.88274084,4291.2,4291.1,5.616]
[1757165894150,4.88274084,4291.2,4291.1,1.718]
[1757165894351,4.88274084,4291.2,4291.1,5.616]
[1757165894778,4.88274084,4291.2,4291.1,1.718]
[1757165895069,4.88274084,4291.2,4291.1,5.616]
[1757165895424,3.56158919,4291.2,4291.1,5.616]
[1757165897217,4.01188919,4291.2,4291.1,5.616]
[1757165897455,3.56158919,4291.2,4291.1,5.616]
[1757165899830,3.25248919,4291.2,4291.1,5.616]
[1757165900234,3.25247713,4291.2,4291.1,5.616]
[1757165900427,3.81085446,4291.2,4291.1,5.616]
[1757165901361,3.12251341,4290.9,4290.8,0.0213]
[1757165901523,0.92212665,4290.9,4290.8,1.7353]
[1757165901718,0.92212665,4290.9,4290.8,2.0287]
[1757165902046,3.25264006,4290.9,4290.8,2.4846]
[1757165902241,3.25264006,4290.9,4290.8,2.9173]
[1757165902452,3.25264006,4290.9,4290.8,6.8133]
[1757165902656,3.25264006,4290.9,4290.8,6.3806]
[1757165902832,0.92212665,4290.9,4290.8,6.8133]
[1757165903032,3.25267673,4290.9,4290.8,6.8133]
[1757165903867,3.25267673,4290.9,4290.8,5.6313]
[1757165904564,3.25267673,4290.9,4290.8,5.9247]
[1757165905167,0.92216332,4290.9,4290.8,6.8133]
[1757165905772,7.43816332,4290.9,4290.8,6.8133]
[1757165906334,7.43816332,4290.9,4290.8,6.8123]
[1757165909260,7.43816332,4290.9,4290.8,6.8163]
[1757165911870,7.4326718,4290.9,4290.8,6.8163]
[1757165914936,7.4326718,4290.9,4290.8,1.7393]
[1757165915175,9.76318521,4290.9,4290.8,5.6303]
[1757165916353,9.76318521,4290.9,4290.8,1.7393]
[1757165916554,10.07228521,4290.9,4290.8,5.6303]
[1757165916774,9.76318521,4290.9,4290.8,5.6303]
[1757165917461,15.18593814,4290.9,4290.8,1.7393]
[1757165917663,15.18593814,4290.9,4290.8,5.6293]
[1757165918692,14.73563814,4290.9,4290.8,5.6293]
[1757165918888,14.28173814,4290.9,4290.8,5.6293]
[1757165919288,15.18593814,4290.9,4290.8,5.6293]
[1757165920469,14.73563814,4290.9,4290.8,5.6293]
[1757165920690,14.28173814,4290.9,4290.8,5.6293]
[1757165921073,14.28164443,4290.9,4290.8,5.6293]
[1757165921665,13.97254443,4290.9,4290.8,5.6293]
[1757165922004,14.25904443,4290.9,4290.8,5.6293]
[1757165922603,15.22354443,4290.9,4290.8,5.6293]
[1757165922999,13.97254443,4290.9,4290.8,5.6293]
[1757165923493,14.25904443,4290.9,4290.8,5.6293]
[1757165924602,13.97254443,4290.9,4290.8,5.9285]
[1757165925806,13.97254443,4290.9,4290.8,5.6293]
[1757165926105,14.25904443,4290.9,4290.8,5.6293]
[1757165926681,13.97354443,4290.9,4290.8,5.6293]
[1757165926881,14.26004443,4290.9,4290.8,5.6293]
[1757165928098,14.12988228,4290.9,4290.8,5.6293]
[1757165928304,14.2599754,4290.9,4290.8,5.6293]
[1757165929588,19.67834399,4290.9,4290.8,5.6293]
[1757165930287,19.39184399,4290.9,4290.8,5.6293]
[1757165930996,19.39184399,4290.9,4290.8,5.9285]
[1757165931177,18.1824836,4290.9,4290.8,6.8246]
[1757165931814,18.18244771,4290.9,4290.8,6.8246]
[1757165932673,18.18244771,4290.9,4290.8,5.9285]
[1757165932915,20.30366663,4290.9,4290.8,5.9285]
[1757165934115,20.30366663,4290.9,4290.8,6.3676]
[1757165934891,14.88529804,4290.9,4290.8,6.3676]
[1757165935221,12.76407912,4290.9,4290.8,6.8246]
[1757165935422,0.13105723,4290.9,4290.8,6.8246]
[1757165935716,0.001,4290.9,4290.8,6.8246]
[1757165936015,0.001,4290.9,4290.8,9.15516772]
[1757165938329,0.001,4290.9,4290.8,6.8246]
[1757165938619,0.001,4290.9,4290.8,9.90794826]
[1757165945037,0.117,4290.9,4290.8,9.90794826]
[1757165951837,0.117,4290.9,4290.8,9.92394826]
[1757165952036,0.117,4290.9,4290.8,9.46884826]
[1757165952546,0.117,4290.9,4290.8,9.92394826]
[1757165955939,0.117,4290.9,4290.8,9.46884826]
[1757165956139,0.117,4290.9,4290.8,9.01184826]
[1757165956340,0.117,4290.9,4290.8,8.71264826]
[1757165957419,0.117,4290.9,4290.8,9.01504826]
[1757165957620,0.117,4290.9,4290.8,8.71264826]
[1757165958431,0.4085,4290.9,4290.8,8.70664826]
[1757165958619,0.4085,4290.9,4290.8,7.95386772]
[1757165959227,0.117,4290.9,4290.8,7.95386772]
[1757165959822,0.4085,4290.9,4290.8,7.95386772]
[1757165960040,0.117,4290.9,4290.8,7.95386772]
[1757165960246,0.4085,4290.9,4290.8,7.95386772]
[1757165960738,0.117,4290.9,4290.8,7.95386772]
[1757165960944,0.117,4290.9,4290.8,9.28512169]
[1757165961522,0.117,4290.9,4290.8,10.20462169]
[1757165962235,0.10405447,4290.9,4290.8,10.20462169]
[1757165963016,0.001,4291.3,4291.2,2.33035048]
[1757165963209,0.001,4291.3,4291.2,6.21235048]
[1757165963438,0.001,4291.3,4291.2,6.51475048]
[1757165964235,0.001,4291.3,4291.2,7.43425048]
[1757165966335,0.001,4291.3,4291.2,8.41071775]
[1757165966717,0.001,4291.3,4291.2,8.54110688]
[1757165967313,0.117,4291.3,4291.2,8.54110688]
[1757165969412,0.117,4291.3,4291.2,8.7130912]
[1757165970423,0.001,4291.3,4291.2,8.7130912]
[1757165976940,0.001,4291.3,4291.2,8.2486912]
[1757165977943,0.001,4291.3,4291.2,8.7130912]
[1757165992270,0.001,4291.3,4291.2,11.7130912]
[1757165992833,0.001,4291.3,4291.2,11.8290912]
[1757165999783,0.116,4292.7,4291.7,2.33007898]
[1757165999981,0.116,4292.7,4292.1,2.32986183]
[1757166000288,0.116,4292.7,4292.1,14.56286183]
[1757166000482,0.5638,4292.7,4292.1,14.67886183]
[1757166000685,1.049,4292.7,4292.1,14.67886183]
[1757166003671,0.3111,4292.2,4292.1,7.80086183]
[1757166003875,1.2441,4292.2,4292.1,11.67886183]
[1757166005096,1.2441,4292.2,4292.1,7.80086183]
[1757166005263,1.2441,4292.2,4292.1,11.67886183]
[1757166006294,1.2441,4292.2,4292.1,5.471]
[1757166006688,1.2441,4292.2,4292.1,11.67886183]
[1757166007062,1.2441,4292.2,4292.1,9.349]
[1757166008290,1.2441,4292.2,4292.1,5.471]
[1757166008491,1.36851,4292.2,4292.1,9.233]
[1757166009493,1.2441,4292.2,4292.1,9.233]
[1757166010063,1.2441,4292.2,4292.1,11.56286183]
[1757166010260,1.2441,4292.2,4292.1,7.68486183]
[1757166010464,1.2441,4292.2,4292.1,11.56286183]
[1757166010901,1.2441,4292.2,4292.1,9.233]
[1757166011306,1.2441,4292.2,4292.1,11.56286183]
[1757166016535,0.7963,4292.2,4292.1,11.56286183]
[1757166016738,0.3111,4292.2,4292.1,11.56286183]
[1757166018258,0.001,4292.2,4292.1,12.34656183]
[1757166018630,0.001,4292.2,4292.1,12.35406183]
[1757166021354,0.001,4292.2,4292.1,12.82736183]
[1757166021555,0.001,4292.2,4292.1,13.30406183]
[1757166022320,0.001,4292.2,4292.1,14.56586401]
[1757166022521,0.001,4292.2,4292.1,15.03916401]
[1757166027299,0.001,4292.2,4292.1,13.77876401]
[1757166027458,0.001,4292.2,4292.1,14.08916401]
[1757166027659,0.001,4292.2,4292.1,14.56246401]
[1757166028872,0.2978,4292.2,4292.1,13.77876401]
[1757166029282,0.2978,4292.2,4292.1,12.04366183]
[1757166031117,0.2978,4292.2,4292.1,8.16566183]
[1757166031279,0.2978,4292.2,4292.1,12.04366183]
[1757166031971,0.2978,4292.2,4292.1,8.16566183]
[1757166032500,0.2978,4292.2,4292.1,12.04266183]
[1757166033112,0.2978,4292.2,4292.1,8.16566183]
[1757166033295,0.2978,4292.2,4292.1,12.04266183]
[1757166033674,0.2978,4292.2,4292.1,8.16566183]
[1757166033871,1.2216,4292.2,4292.1,12.04266183]
[1757166034265,0.2978,4292.2,4292.1,12.04266183]
[1757166048022,0.001,4292.2,4292.1,12.04266183]
[1757166048225,0.001,4292.2,4292.1,12.81166183]
[1757166048790,0.001,4292.2,4292.1,13.27256183]
[1757166051037,0.001,4292.2,4292.1,12.04266183]
[1757166053029,0.001,4292.2,4292.1,12.35136183]
[1757166053439,0.001,4292.2,4292.1,14.06436183]
[1757166054741,0.001,4292.2,4292.1,14.98556183]
[1757166055931,0.001,4292.2,4292.1,14.06436183]
[1757166056132,0.001,4292.2,4292.1,10.18736183]
[1757166056331,0.001,4292.2,4292.1,14.06436183]
[1757166058826,0.001,4292.2,4292.1,14.98556183]
[1757166059228,0.001,4292.2,4292.1,14.06436183]
[1757166061965,0.001,4292.2,4292.1,11.7345]
[1757166062132,0.001,4292.2,4292.1,14.06436183]
[1757166064306,0.001,4292.2,4292.1,14.52466183]
[1757166064567,0.001,4292.2,4292.1,16.67148201]
[1757166065768,0.117,4292.2,4292.1,16.67148201]
[1757166069764,0.001,4292.2,4292.1,16.67148201]
[1757166073121,9.33753901,4292.2,4292.1,5.8358]
[1757166073386,3.12186183,4292.1,4292.0,0.004]
[1757166073559,3.49929846,4292.1,4292.0,5.593]
[1757166073759,4.49287519,4292.1,4292.0,5.593]
[1757166073962,6.31933385,4292.1,4292.0,5.593]
[1757166079481,6.06193385,4292.1,4292.0,5.593]
[1757166080311,5.60033385,4292.1,4292.0,5.593]
[1757166081010,6.06193385,4292.1,4292.0,5.593]
[1757166082209,5.60033385,4292.1,4292.0,5.593]
[1757166083602,5.59954675,4292.1,4292.0,5.593]
[1757166083926,12.11554675,4292.1,4292.0,5.593]
[1757166084325,12.11553223,4292.1,4292.0,5.593]
[1757166084621,11.89867324,4292.1,4292.0,5.593]
[1757166086229,11.59497324,4292.1,4292.0,6.0806]
[1757166086431,11.59497324,4292.1,4292.0,5.593]
[1757166088134,11.59597324,4292.1,4292.0,5.593]
[1757166091898,11.89967324,4292.1,4292.0,5.593]
[1757166093239,11.89914859,4292.1,4292.0,5.593]
[1757166093907,12.36074859,4292.1,4292.0,5.593]
[1757166095045,12.57765955,4292.1,4292.0,5.593]
[1757166095202,12.11605955,4292.1,4292.0,1.717]
[1757166095535,12.57765955,4292.1,4292.0,5.593]
[1757166096408,12.83505955,4292.1,4292.0,1.717]
[1757166096608,12.83505955,4292.1,4292.0,5.593]
[1757166096916,13.53424372,4292.1,4292.0,5.593]
[1757166097539,16.53424372,4292.1,4292.0,1.717]
[1757166097702,16.53424372,4292.1,4292.0,5.593]
[1757166100228,16.53461893,4292.1,4292.0,5.593]
[1757166103644,16.27721893,4292.1,4292.0,5.593]
[1757166103803,16.27777939,4292.1,4292.0,5.593]
[1757166105955,3.12213328,4291.6,4291.5,0.004]
[1757166106252,11.88213947,4291.6,4291.5,1.718]
[1757166106417,12.62003947,4291.6,4291.5,1.718]
[1757166106951,13.31933772,4291.6,4291.5,1.718]
[1757166107250,13.31933772,4291.6,4291.5,5.595]
[1757166107463,13.99311712,4291.6,4291.5,5.595]
[1757166110551,20.50911712,4291.6,4291.5,5.595]
[1757166111429,15.09708566,4291.6,4291.5,5.595]
[1757166112530,14.65618566,4291.6,4291.5,5.595]
[1757166117126,14.35918566,4291.6,4291.5,5.595]
[1757166118234,14.35878172,4291.6,4291.5,5.595]
[1757166119467,14.35878172,4291.6,4291.5,6.3865]
[1757166119468,13.65948347,4291.6,4291.5,6.3865]
[1757166119764,13.65948347,4291.6,4291.5,6.8173]
[1757166120643,13.65948347,4291.6,4291.5,5.595]
[1757166120838,13.95648347,4291.6,4291.5,5.595]
[1757166122129,13.65948347,4291.6,4291.5,6.0841]
[1757166122966,13.65948347,4291.6,4291.5,5.595]
[1757166125460,13.65948347,4291.6,4291.5,6.3865]
[1757166127609,13.65948347,4291.6,4291.5,6.0841]
[1757166130297,13.65948347,4291.6,4291.5,5.595]
[1757166130606,13.95368347,4291.6,4291.5,5.595]
[1757166131389,13.65948347,4291.6,4291.5,5.595]
[1757166131695,13.65985103,4291.6,4291.5,5.595]
[1757166131904,13.65985103,4291.6,4291.5,6.8055]
[1757166134319,13.65985103,4291.6,4291.5,6.0632]
[1757166134619,13.65985103,4291.6,4291.5,6.3642]
[1757166135085,13.52936051,4291.6,4291.5,6.3642]
[1757166135419,13.65987786,4291.6,4291.5,6.3642]
[1757166135714,13.65987786,4291.6,4291.5,6.0632]
[1757166135919,13.65987786,4291.6,4291.5,5.595]
[1757166136293,13.65987786,4291.6,4291.5,1.718]
[1757166136614,13.95407786,4291.6,4291.5,5.594]
[1757166139141,13.65987786,4291.6,4291.5,6.0622]
[1757166139341,13.65987786,4291.6,4291.5,6.8045]
[1757166142525,13.65987786,4291.6,4291.5,5.594]
[1757166143737,13.65987786,4291.6,4291.5,6.0622]
[1757166144537,13.65987786,4291.6,4291.5,6.8045]
[1757166150346,13.65987786,4291.6,4291.5,6.3632]
[1757166150545,13.65987786,4291.6,4291.5,6.0622]
[1757166151478,13.65987786,4291.6,4291.5,6.3632]
[1757166152244,9.98609846,4291.6,4291.5,6.8045]
[1757166153066,7.65596518,4291.6,4291.5,6.8045]
[1757166153273,6.86396518,4291.6,4291.5,6.8045]
[1757166154558,0.34796518,4291.6,4291.5,9.13468758]
[1757166154765,0.116,4291.7,4291.5,7.95199481]
[1757166154981,0.116,4291.7,4291.6,4.7865]
[1757166155358,0.116,4291.7,4291.6,5.0875]
[1757166159292,0.116,4291.7,4291.6,5.0865]
[1757166160285,0.116,4291.7,4291.6,1.2105]
[1757166160495,0.116,4291.7,4291.6,5.0865]
[1757166161190,0.908,4291.7,4291.6,0.7692]
[1757166161394,3.23807898,4291.7,4291.6,4.3432]
[1757166161570,4.75218397,4291.7,4291.6,3.875]
[1757166161773,4.88237198,4291.7,4291.6,3.875]
[1757166162236,4.88237198,4291.7,4291.5,1.718]
[1757166162237,3.12213328,4291.6,4291.5,1.718]
[1757166162429,3.71201807,4291.6,4291.5,1.718]
[1757166162741,4.01761807,4291.6,4291.5,5.594]
[1757166163038,5.65340776,4291.6,4291.5,5.594]
[1757166163245,8.65340776,4291.6,4291.5,1.718]
[1757166163412,8.65340776,4291.6,4291.5,5.594]
[1757166165937,8.19370776,4291.6,4291.5,5.594]
[1757166173759,7.97673827,4291.6,4291.5,5.594]
[1757166174066,8.19377672,4291.6,4291.5,5.594]
[1757166176432,8.19379342,4291.6,4291.5,5.594]
[1757166178754,7.88819342,4291.6,4291.5,5.594]
[1757166179149,7.88819342,4291.6,4291.5,6.0499]
[1757166179749,7.88819342,4291.6,4291.5,5.594]
[1757166179750,8.65349342,4291.6,4291.5,5.594]
[1757166180175,9.3527933,4291.6,4291.5,5.594]
[1757166181490,8.8930933,4291.6,4291.5,5.594]
[1757166185695,15.4090933,4291.6,4291.5,5.594]
[1757166186705,15.4090933,4291.6,4291.1,0.4599]
[1757166186706,3.0,4291.5,4291.3,1.714]
[1757166187007,6.12229618,4291.3,4291.2,1.714]
[1757166187189,6.77513612,4291.3,4291.2,1.714]
[1757166187817,7.47448002,4291.3,4291.2,1.714]
[1757166188014,16.25838799,4291.3,4291.2,5.59]
[1757166193607,6.12235048,4291.2,4291.1,0.004]
[1757166193807,12.98559042,4291.2,4291.1,5.594]
[1757166194114,13.27459042,4291.2,4291.1,5.594]
[1757166194319,15.54249839,4291.2,4291.1,5.594]
[1757166195886,15.25349839,4291.2,4291.1,5.594]
[1757166196184,15.25349839,4291.2,4291.1,6.0844]
[1757166199222,15.25349839,4291.2,4291.1,5.594]
[1757166200927,20.66953812,4291.2,4291.1,5.594]
[1757166208920,20.66953812,4291.2,4291.1,6.3848]
[1757166209133,20.66953812,4291.2,4291.1,2.9753]
[1757166209304,20.6700557,4291.2,4291.1,6.8513]
[1757166212141,20.6700557,4291.2,4291.1,6.3848]
[1757166212342,20.6700557,4291.2,4291.1,6.8513]
[1757166212935,20.6700557,4291.2,4291.1,6.3848]
[1757166213147,20.67010978,4291.2,4291.1,6.3848]
[1757166216543,20.95942775,4291.2,4291.1,1.718]
[1757166216739,21.41162775,4291.2,4291.1,5.594]
[1757166217345,20.95942775,4291.2,4291.1,5.594]
[1757166218042,20.67042775,4291.2,4291.1,5.594]
[1757166219847,20.97822775,4291.2,4291.1,5.593]
[1757166221079,20.67042775,4291.2,4291.1,5.593]
[1757166221369,20.67042775,4291.2,4291.1,6.0434]
[1757166222675,20.67042775,4291.2,4291.1,5.593]
[1757166225163,17.97232775,4291.2,4291.1,5.593]
[1757166226576,17.97232775,4291.2,4291.1,1.718]
[1757166226877,17.97232775,4291.2,4291.1,5.593]
[1757166232052,17.67042775,4291.2,4291.1,5.593]
[1757166233595,12.25438802,4291.2,4291.1,5.593]
[1757166234298,12.25438802,4291.2,4291.1,6.353]
[1757166234484,12.25438802,4291.2,4291.1,6.7869]
[1757166235396,12.25438802,4291.2,4291.1,6.353]
[1757166236400,12.25438802,4291.2,4291.1,6.7869]
[1757166244073,9.98660533,4291.2,4291.1,6.7869]
[1757166245414,9.76893891,4291.2,4291.1,6.7869]
[1757166247603,9.76892522,4291.2,4291.1,6.7869]
[1757166254338,6.17157474,4291.2,4291.1,6.7886]
[1757166254492,4.67157474,4291.2,4291.1,8.40263043]
[1757166255427,4.541,4291.2,4291.1,8.40263043]
[1757166259630,4.541,4291.2,4291.1,7.95223043]
[1757166261120,4.541,4291.2,4291.1,7.95023043]
[1757166263157,0.001,4291.5,4291.1,7.95023043]
[1757166263360,0.001,4291.5,4291.2,1.02846655]
[1757166263562,0.001,4291.5,4291.3,3.873]
[1757166263860,0.001,4291.5,4291.4,0.2879]
[1757166264057,0.001,4291.5,4291.4,0.7235]
[1757166264262,0.001,4291.5,4291.4,1.42266299]
[1757166264425,0.001,4291.5,4291.4,2.22687594]
[1757166264866,0.001,4291.5,4291.4,1.79127594]
[1757166268640,0.001,4291.5,4291.4,1.50337594]
[1757166268861,0.7767,4291.5,4291.4,1.50337594]
[1757166269229,0.001,4291.5,4291.4,1.50337594]
[1757166270772,0.001,4291.5,4291.4,1.79127594]
[1757166271973,0.001,4291.5,4291.4,2.22687594]
[1757166272197,0.001,4291.5,4291.4,1.79127594]
[1757166273774,0.001,4291.5,4291.4,2.22687594]
[1757166274578,0.001,4291.5,4291.4,4.80021781]
[1757166274965,0.001,4291.5,4291.4,2.22687594]
[1757166275152,0.001,4291.5,4291.4,4.55711781]
[1757166275559,0.001,4291.5,4291.4,2.22687594]
[1757166275858,0.001,4291.5,4291.4,4.55711781]
[1757166276479,0.001,4291.5,4291.4,2.22687594]
[1757166276985,0.001,4291.5,4291.4,4.55711781]
[1757166277948,0.001,4291.5,4291.4,2.22687594]
[1757166278701,0.001,4291.5,4291.4,4.55711781]
[1757166279276,0.001,4291.5,4291.4,2.22687594]
[1757166279791,0.001,4291.5,4291.4,4.55711781]
[1757166281099,0.001,4291.5,4291.4,2.22687594]
[1757166281662,0.001,4291.5,4291.4,4.55711781]
[1757166282099,0.001,4291.5,4291.4,2.22687594]
[1757166284100,0.001,4291.5,4291.4,1.79127594]
[1757166285006,0.001,4291.5,4291.4,2.22797594]
[1757166285172,0.001,4291.5,4291.4,1.79127594]
[1757166289509,0.001,4291.5,4291.4,4.12151781]
[1757166291203,0.117,4291.5,4291.4,4.55821781]
[1757166291695,0.117,4291.5,4291.4,4.73478224]
[1757166293416,0.117,4291.5,4291.4,4.97788224]
[1757166293616,0.117,4291.5,4291.4,4.73478224]
[1757166294708,0.117,4291.5,4291.4,4.29808224]
[1757166295023,0.117,4291.5,4291.4,4.73478224]
[1757166301155,0.117,4291.5,4291.4,4.01018224]
[1757166301290,0.8659,4291.5,4291.4,4.01018224]
[1757166301992,0.5799,4291.5,4291.4,4.01018224]
[1757166303226,0.117,4291.5,4291.4,4.31578224]
[1757166307748,0.117,4291.5,4291.4,4.31578224]
[1757166311845,0.117,4291.5,4291.4,4.01018224]
[1757166312042,0.5674,4291.5,4291.4,4.01018224]
[1757166314010,0.117,4291.5,4291.4,4.01018224]
[1757166314748,0.117,4291.5,4291.4,7.88018224]
[1757166315044,0.8666,4291.5,4291.4,7.88018224]
[1757166315449,0.5674,4291.5,4291.4,7.88018224]
[1757166315751,0.117,4291.5,4291.4,7.88018224]
[1757166320521,0.117,4291.5,4291.4,8.19238224]
[1757166322271,0.117,4291.5,4291.4,8.66358224]
[1757166325572,0.117,4291.5,4291.4,8.19238224]
[1757166329379,0.117,4291.5,4291.4,7.88018224]
[1757166330085,0.5674,4291.5,4291.4,7.88018224]
[1757166330458,0.5674,4291.5,4291.4,9.59418224]
[1757166330959,0.5674,4291.5,4291.4,9.59318224]
[1757166333916,0.5674,4291.5,4291.4,9.90538224]
[1757166334216,0.117,4291.5,4291.4,9.90538224]